bitfinex/quotes_BTCUSD_20250723
["timestamp","ask_amount","ask_price","bid_price","bid_amount"]
[1753242607003,0.69985763,118670.0,118660.0,0.18046891]
[1753242607204,0.69143091,118670.0,118660.0,0.18046891]
[1753242607416,0.69451091,118670.0,118660.0,0.18046905]
[1753242607856,0.69451091,118670.0,118660.0,0.18889641]
[1753242608235,0.69451091,118670.0,118660.0,0.1973237]
[1753242608796,0.69451091,118670.0,118660.0,0.18889641]
[1753242609399,0.69451091,118670.0,118660.0,0.1973237]
[1753242609603,0.69451091,118670.0,118660.0,0.18889641]
[1753242609819,0.69451091,118670.0,118660.0,0.18046905]
[1753242610035,0.69451091,118670.0,118660.0,0.19732363]
[1753242610911,0.70293763,118670.0,118660.0,0.19732363]
[1753242611129,0.53116262,118670.0,118660.0,0.21417765]
[1753242611335,0.54801557,118670.0,118660.0,0.21417765]
[1753242611630,0.56486831,118670.0,118660.0,0.21417765]
[1753242611846,0.53316831,118670.0,118660.0,0.21417765]
[1753242612047,0.53316831,118670.0,118660.0,0.21622765]
[1753242612251,0.7017029,118670.0,118660.0,0.21622765]
[1753242612840,0.69327723,118670.0,118660.0,0.19937363]
[1753242613051,0.71685086,118670.0,118660.0,0.19732363]
[1753242613458,0.70834386,118670.0,118660.0,0.21100071]
[1753242613723,0.70047058,118670.0,118660.0,0.21100071]
[1753242614230,0.56743058,118670.0,118660.0,0.21100071]
[1753242614438,0.70047058,118670.0,118660.0,0.20257363]
[1753242614640,0.55900421,118670.0,118660.0,0.19937363]
[1753242614845,0.69200421,118670.0,118660.0,0.19937363]
[1753242615047,0.69200421,118670.0,118660.0,0.20780078]
[1753242617940,0.69200421,118670.0,118660.0,0.21622786]
[1753242618146,0.52334927,118670.0,118660.0,0.21622737]
[1753242618356,0.67618386,118670.0,118660.0,0.21622737]
[1753242618563,0.68461058,118670.0,118660.0,0.21100043]
[1753242619822,0.70648421,118670.0,118660.0,0.18046898]
[1753242620031,0.70956421,118670.0,118660.0,0.18889627]
[1753242620234,0.70956421,118670.0,118660.0,0.19732349]
[1753242620868,0.70113763,118670.0,118660.0,0.19732349]
[1753242621087,0.56825763,118670.0,118660.0,0.20575057]
[1753242621354,0.70097763,118670.0,118660.0,0.19732349]
[1753242621997,0.70097763,118670.0,118660.0,0.18889627]
[1753242622449,0.50808899,118670.0,118660.0,0.21100036]
[1753242622683,0.51452536,118670.0,118660.0,0.21100036]
[1753242622910,0.52295138,118670.0,118660.0,0.21100036]
[1753242624413,0.51452494,118670.0,118660.0,0.34432036]
[1753242624642,0.50609864,118670.0,118660.0,0.34432036]
[1753242624852,0.51452501,118670.0,118660.0,0.35952036]
[1753242625066,0.36435241,118670.0,118660.0,0.35952036]
[1753242625533,0.37277864,118670.0,118660.0,0.35952036]
[1753242625818,0.37277857,118670.0,118660.0,0.35952036]
[1753242626071,0.37277871,118670.0,118660.0,0.35952036]
[1753242626284,0.37277864,118670.0,118660.0,0.35952036]
[1753242626920,0.36435241,118670.0,118660.0,0.35952036]
[1753242627125,0.37277864,118670.0,118660.0,0.35952036]
[1753242627343,0.36435241,118670.0,118660.0,0.35952036]
[1753242627555,0.37277871,118670.0,118660.0,0.35952036]
[1753242627698,0.36435241,118670.0,118660.0,0.35952036]
[1753242628332,0.37277864,118670.0,118660.0,0.35952036]
[1753242628742,0.36435241,118670.0,118660.0,0.35952036]
[1753242629187,0.37277864,118670.0,118660.0,0.35952036]
[1753242629386,0.36435248,118670.0,118660.0,0.35952036]
[1753242629585,0.35592632,118670.0,118660.0,0.35952036]
[1753242629788,0.36435248,118670.0,118660.0,0.34409536]
[1753242629992,0.37277878,118670.0,118660.0,0.34409536]
[1753242630189,0.27144902,118670.0,118660.0,0.65874443]
[1753242630391,0.254,118670.0,118660.0,0.65874443]
[1753242631000,0.253,118670.0,118660.0,0.65874443]
[1753242631568,0.292726,118680.0,118670.0,0.19381391]
[1753242631772,0.3687775,118680.0,118670.0,0.19898391]
[1753242631975,0.3772033,118680.0,118670.0,0.19898391]
[1753242632186,0.3772033,118680.0,118670.0,0.23098391]
[1753242632594,0.25,118680.0,118670.0,0.51373298]
[1753242633223,0.254,118680.0,118670.0,0.23088391]
[1753242633433,0.254,118680.0,118670.0,0.51473298]
[1753242633841,0.254,118680.0,118670.0,0.52306223]
[1753242634050,0.255,118680.0,118670.0,0.52406223]
[1753242636195,0.255,118680.0,118670.0,0.51573298]
[1753242636637,0.26342538,118680.0,118670.0,0.20098391]
[1753242636861,0.25711,118680.0,118670.0,0.33378391]
[1753242637075,0.28083545,118680.0,118670.0,0.33055391]
[1753242637300,0.26553545,118680.0,118670.0,0.33055391]
[1753242637513,0.33457572,118680.0,118670.0,0.32857398]
[1753242637745,0.34300159,118680.0,118670.0,0.20424021]
[1753242637954,0.49467122,118680.0,118670.0,0.30325459]
[1753242638182,0.49467122,118680.0,118670.0,0.002]
[1753242638183,0.70340265,118680.0,118670.0,0.002]
[1753242638613,0.98725172,118680.0,118670.0,0.002]
[1753242653121,0.70340265,118680.0,118670.0,0.002]
[1753242653363,0.98725172,118680.0,118670.0,0.002]
[1753242655998,0.70340265,118680.0,118670.0,0.002]
[1753242656217,0.98725172,118680.0,118670.0,0.002]
[1753242656432,0.98421172,118680.0,118670.0,0.002]
[1753242656873,0.98722172,118680.0,118670.0,0.002]
[1753242657553,1.38722172,118680.0,118670.0,0.002]
[1753242658385,1.10337265,118680.0,118670.0,0.002]
[1753242658645,1.38722172,118680.0,118670.0,0.002]
[1753242659606,1.10337265,118680.0,118670.0,0.002]
[1753242659816,1.38722172,118680.0,118670.0,0.002]
[1753242665210,1.42287,118680.0,118670.0,0.002]
[1753242668231,1.02287,118680.0,118670.0,0.002]
[1753242671623,0.70337265,118680.0,118670.0,0.002]
[1753242671856,1.02287,118680.0,118670.0,0.002]
[1753242672322,1.42287,118680.0,118670.0,0.002]
[1753242673217,1.42684465,118680.0,118670.0,0.002]
[1753242673433,1.68236735,118680.0,118670.0,0.002]
[1753242673865,2.08236735,118680.0,118670.0,0.002]
[1753242674074,1.68236735,118680.0,118670.0,0.002]
[1753242674283,1.67836735,118680.0,118670.0,0.001]
[1753242675106,1.68436735,118680.0,118670.0,0.002]
[1753242675312,1.68336735,118680.0,118670.0,0.001]
[1753242675929,1.68636735,118680.0,118670.0,0.001]
[1753242683174,1.36687,118680.0,118670.0,0.001]
[1753242683381,1.68636735,118680.0,118670.0,0.001]
[1753242686396,1.71416664,118680.0,118670.0,0.001]
[1753242686617,1.68636735,118680.0,118670.0,0.001]
[1753242687691,1.04737265,118680.0,118670.0,0.001]
[1753242687900,1.68636735,118680.0,118670.0,0.001]
[1753242694055,1.04737265,118680.0,118670.0,0.001]
[1753242694267,1.68636735,118680.0,118670.0,0.001]
[1753242696086,1.04737265,118680.0,118670.0,0.001]
[1753242696286,1.68636735,118680.0,118670.0,0.001]
[1753242698478,1.33216,118680.0,118670.0,0.001]
[1753242699166,1.65165735,118680.0,118670.0,0.001]
[1753242699590,1.01266265,118680.0,118670.0,0.001]
[1753242699806,1.66735735,118680.0,118670.0,0.001]
[1753242700066,1.67036735,118680.0,118670.0,0.001]
[1753242700288,1.0690591,118680.0,118670.0,0.001]
[1753242700551,1.68616735,118680.0,118670.0,0.001]
[1753242706982,1.04717265,118680.0,118670.0,0.001]
[1753242707223,1.68616735,118680.0,118670.0,0.001]
[1753242713207,1.04717265,118680.0,118670.0,0.001]
[1753242713418,1.68616735,118680.0,118670.0,0.001]
[1753242718067,1.04717265,118680.0,118670.0,0.001]
[1753242718287,1.68616735,118680.0,118670.0,0.001]
[1753242720338,1.04717265,118680.0,118670.0,0.001]
[1753242720990,1.67036735,118680.0,118670.0,0.001]
[1753242721268,1.03137265,118680.0,118670.0,0.001]
[1753242721690,1.65165735,118680.0,118670.0,0.001]
[1753242722558,1.33005,118680.0,118670.0,0.02214]
[1753242722763,1.64954735,118680.0,118670.0,0.02214]
[1753242723392,1.01256265,118680.0,118670.0,0.00614]
[1753242723603,1.65155735,118680.0,118670.0,0.02154]
[1753242723946,1.33005,118680.0,118670.0,0.02154]
[1753242724694,1.64954735,118680.0,118670.0,0.00614]
[1753242724895,1.01055265,118680.0,118670.0,0.00614]
[1753242725093,1.33005,118680.0,118670.0,0.02154]
[1753242725849,1.01055265,118680.0,118670.0,0.02154]
[1753242726086,1.33005,118680.0,118670.0,0.02154]
[1753242726706,1.01055265,118680.0,118670.0,0.02154]
[1753242726925,1.33005,118680.0,118670.0,0.02154]
[1753242728185,1.01055265,118680.0,118670.0,0.02154]
[1753242728391,1.33005,118680.0,118670.0,0.02154]
[1753242728807,1.01055265,118680.0,118670.0,0.02154]
[1753242729001,1.33005,118680.0,118670.0,0.02154]
[1753242729593,1.33005,118680.0,118670.0,0.00614]
[1753242729792,1.65155735,118680.0,118670.0,0.00614]
[1753242730072,1.65155735,118680.0,118670.0,0.00303]
[1753242730497,1.65155735,118680.0,118670.0,0.001]
[1753242730719,1.65449735,118680.0,118670.0,0.001]
[1753242733296,1.65155735,118680.0,118670.0,0.00614]
[1753242734339,1.33206,118680.0,118670.0,0.02164]
[1753242734737,1.33005,118680.0,118670.0,0.02164]
[1753242736995,1.01055265,118680.0,118670.0,0.03784]
[1753242737210,0.53787265,118680.0,118670.0,0.53429866]
[1753242737413,0.53787265,118680.0,118670.0,0.03784]
[1753242738195,0.53787265,118680.0,118670.0,0.20637459]
[1753242738396,0.53787265,118680.0,118670.0,0.03784]
[1753242740020,0.53787265,118680.0,118670.0,0.21480124]
[1753242740575,0.93787265,118680.0,118670.0,0.21480131]
[1753242740780,0.93787265,118680.0,118670.0,0.22322796]
[1753242740981,0.93787265,118680.0,118670.0,0.21480131]
[1753242741402,0.93787265,118680.0,118670.0,0.22322796]
[1753242741606,0.93787265,118680.0,118670.0,0.23165454]
[1753242741810,0.93787265,118680.0,118670.0,0.24850749]
[1753242742286,0.95472439,118680.0,118670.0,0.24850714]
[1753242742960,0.78620344,118680.0,118670.0,0.56800407]
[1753242743218,0.96314977,118680.0,118670.0,0.56800407]
[1753242743425,0.56314984,118680.0,118670.0,0.56800407]
[1753242743631,0.56314984,118680.0,118670.0,0.55957784]
[1753242743837,0.56314984,118680.0,118670.0,0.24008049]
[1753242744468,0.55472432,118680.0,118670.0,0.23165412]
[1753242744852,0.53787272,118680.0,118670.0,0.21480131]
[1753242745017,0.53787272,118680.0,118670.0,0.22322796]
[1753242745218,0.53787272,118680.0,118670.0,0.23165454]
[1753242745896,0.53787272,118680.0,118670.0,0.24008105]
[1753242746108,0.53787272,118680.0,118670.0,0.24850749]
[1753242746618,0.53787272,118680.0,118670.0,0.24008105]
[1753242746834,0.53787272,118680.0,118670.0,0.24850749]
[1753242747210,0.53787272,118680.0,118670.0,0.24008105]
[1753242748067,0.53787272,118680.0,118670.0,0.5595784]
[1753242748482,0.53787272,118680.0,118670.0,0.24008105]
[1753242748996,0.54629852,118680.0,118670.0,0.24850749]
[1753242749198,0.54629852,118680.0,118670.0,0.03784]
[1753242749407,0.56621019,118670.0,118660.0,0.00326783]
[1753242749620,1.44824462,118670.0,118660.0,0.00326783]
[1753242749829,1.12874727,118670.0,118660.0,0.00326783]
[1753242750408,1.24650727,118670.0,118660.0,0.00326783]
[1753242750630,1.37874727,118670.0,118660.0,0.00326783]
[1753242750876,1.40556727,118670.0,118660.0,0.00326783]
[1753242751341,1.37520262,118670.0,118660.0,0.00326783]
[1753242751759,1.24296262,118670.0,118660.0,0.00326783]
[1753242751978,1.37520262,118670.0,118660.0,0.00326783]
[1753242752423,1.09106992,118670.0,118660.0,0.00326783]
[1753242752629,1.37520262,118670.0,118660.0,0.00326783]
[1753242753436,1.45967992,118670.0,118660.0,0.00326783]
[1753242753852,1.37520262,118670.0,118660.0,0.00326783]
[1753242762164,1.37520262,118670.0,118660.0,0.30326783]
[1753242763585,1.24296262,118670.0,118660.0,0.30326783]
[1753242763808,1.34041262,118670.0,118660.0,0.30326783]
[1753242764027,1.20817262,118670.0,118660.0,0.30326783]
[1753242764268,1.34041262,118670.0,118660.0,0.30523783]
[1753242764893,1.34041262,118670.0,118660.0,0.30326783]
[1753242769184,1.05627992,118670.0,118660.0,0.30326783]
[1753242769410,1.05627992,118670.0,118660.0,0.30835783]
[1753242769411,1.33838262,118670.0,118660.0,0.30835783]
[1753242769627,1.33838262,118670.0,118660.0,0.32485783]
[1753242769852,1.05424992,118670.0,118660.0,0.32485783]
[1753242770065,1.33838262,118670.0,118660.0,0.32485783]
[1753242770477,1.31956262,118670.0,118660.0,0.32485783]
[1753242770712,1.31956262,118670.0,118660.0,0.30835783]
[1753242771155,1.32159262,118670.0,118660.0,0.30835783]
[1753242772135,1.32159262,118670.0,118660.0,0.30326783]
[1753242772273,1.35618262,118670.0,118660.0,0.30326783]
[1753242773379,1.07204992,118670.0,118660.0,0.30326783]
[1753242773816,1.35618262,118670.0,118660.0,0.30326783]
[1753242774026,1.07204992,118670.0,118660.0,0.30326783]
[1753242774473,1.35618262,118670.0,118660.0,0.30326783]
[1753242775399,1.33689262,118670.0,118660.0,0.30326783]
[1753242775622,1.31956262,118670.0,118660.0,0.32455783]
[1753242776069,1.32152262,118670.0,118660.0,0.30835783]
[1753242776308,1.32152262,118670.0,118660.0,0.30524783]
[1753242777493,1.32152262,118670.0,118660.0,0.30326783]
[1753242778838,1.35659262,118670.0,118660.0,0.30326783]
[1753242779203,1.07245992,118670.0,118660.0,0.30326783]
[1753242779431,1.35659262,118670.0,118660.0,0.30326783]
[1753242784723,1.07245992,118670.0,118660.0,0.30326783]
[1753242784966,1.35659262,118670.0,118660.0,0.30326783]
[1753242785351,1.07245992,118670.0,118660.0,0.30326783]
[1753242785646,1.35659262,118670.0,118660.0,0.30326783]
[1753242786107,1.07245992,118670.0,118660.0,0.30326783]
[1753242786318,1.05115749,118670.0,118660.0,0.30326783]
[1753242786535,1.33529019,118670.0,118660.0,0.30326783]
[1753242786756,1.05115749,118670.0,118660.0,0.30326783]
[1753242786971,1.33529019,118670.0,118660.0,0.30326783]
[1753242788054,1.05115749,118670.0,118660.0,0.30326783]
[1753242788256,1.33529019,118670.0,118660.0,0.30326783]
[1753242789792,1.36058419,118670.0,118660.0,0.30326783]
[1753242797263,1.39611576,118670.0,118660.0,0.30326783]
[1753242802158,1.71578003,118670.0,118660.0,0.30326783]
[1753242802378,1.39611576,118670.0,118660.0,0.30326783]
[1753242802597,1.74349436,118670.0,118660.0,0.30326783]
[1753242803869,1.71578003,118670.0,118660.0,0.30326783]
[1753242804290,1.58354003,118670.0,118660.0,0.30326783]
[1753242804495,1.71562003,118670.0,118660.0,0.30326783]
[1753242805309,1.36048716,118670.0,118660.0,0.30326783]
[1753242805444,1.44198545,118670.0,118660.0,0.30326783]
[1753242805921,1.46797291,118670.0,118660.0,0.30326783]
[1753242806121,1.38647462,118670.0,118660.0,0.30326783]
[1753242806706,1.36048716,118670.0,118660.0,0.30326783]
[1753242816422,1.07629149,118670.0,118660.0,0.30326783]
[1753242816647,1.36048716,118670.0,118660.0,0.30326783]
[1753242820387,1.36048716,118670.0,118660.0,0.00396783]
[1753242825178,1.71575751,118670.0,118660.0,0.00396783]
[1753242828153,1.78221002,118670.0,118660.0,0.00396783]
[1753242828527,1.59124253,118670.0,118660.0,0.00396783]
[1753242828758,1.72324253,118670.0,118660.0,0.00396783]
[1753242829466,1.59124253,118670.0,118660.0,0.00396783]
[1753242829667,1.72324253,118670.0,118660.0,0.00396783]
[1753242831763,1.59124253,118670.0,118660.0,0.00396783]
[1753242832211,1.72324253,118670.0,118660.0,0.00396783]
[1753242832414,1.59124253,118670.0,118660.0,0.00396783]
[1753242832645,1.72324253,118670.0,118660.0,0.00396783]
[1753242834767,1.70357253,118670.0,118660.0,0.00396783]
[1753242836502,1.79110983,118670.0,118660.0,0.00396783]
[1753242837096,1.72313253,118670.0,118660.0,0.00396783]
[1753242842133,0.5344251,118660.0,118650.0,0.00064]
[1753242842335,1.41473222,118660.0,118650.0,0.00064]
[1753242843359,1.41473222,118660.0,118650.0,0.00266]
[1753242843567,1.41473222,118660.0,118650.0,0.00064]
[1753242843774,1.42073222,118660.0,118650.0,0.00064]
[1753242844046,1.42473222,118660.0,118650.0,0.00064]
[1753242844226,0.7852662,118660.0,118650.0,0.00064]
[1753242844404,1.42473222,118660.0,118650.0,0.00064]
[1753242845424,1.67473222,118660.0,118650.0,0.00266]
[1753242847902,1.80804156,118660.0,118650.0,0.00266]
[1753242848023,1.67473222,118660.0,118650.0,0.00266]
[1753242849837,1.70002922,118660.0,118650.0,0.00266]
[1753242850158,1.70002922,118660.0,118650.0,0.00064]
[1753242850700,1.71522922,118660.0,118650.0,0.00064]
[1753242850915,1.71828922,118660.0,118650.0,0.00064]
[1753242851529,1.70002922,118660.0,118650.0,0.00064]
[1753242853196,1.79776277,118660.0,118650.0,0.00064]
[1753242856104,1.79776277,118660.0,118650.0,0.00266]
[1753242856553,1.15829675,118660.0,118650.0,0.00266]
[1753242856846,1.79776277,118660.0,118650.0,0.00266]
[1753242857501,1.66472277,118660.0,118650.0,0.00266]
[1753242857701,1.79760277,118660.0,118650.0,0.00266]
[1753242860596,1.66472277,118660.0,118650.0,0.00266]
[1753242860802,1.79752277,118660.0,118650.0,0.00266]
[1753242861010,1.79756277,118660.0,118650.0,0.00266]
[1753242863151,1.66472277,118660.0,118650.0,0.00266]
[1753242863353,1.79752277,118660.0,118650.0,0.00266]
[1753242864098,1.66472277,118660.0,118650.0,0.00266]
[1753242864533,1.79740277,118660.0,118650.0,0.00266]
[1753242866094,1.79740277,118660.0,118650.0,0.00064]
[1753242866266,1.83194277,118660.0,118650.0,0.00064]
[1753242866467,1.83182277,118660.0,118650.0,0.00064]
[1753242867454,0.52261644,118640.0,118630.0,0.0311]
[1753242867667,0.73961374,118640.0,118630.0,0.03308]
[1753242867937,0.73961374,118640.0,118630.0,0.03613]
[1753242868344,0.98961374,118640.0,118630.0,0.0311]
[1753242868557,0.99177374,118640.0,118630.0,0.0004]
[1753242868763,0.99177374,118640.0,118630.0,0.01828]
[1753242868978,0.98961374,118640.0,118630.0,0.02133]
[1753242869188,0.98961374,118640.0,118630.0,0.0315]
[1753242869632,0.98961374,118640.0,118630.0,0.03653]
[1753242869842,1.02741374,118640.0,118630.0,0.0004]
[1753242870222,1.01111374,118640.0,118630.0,0.0004]
[1753242870424,1.03241374,118640.0,118630.0,0.0004]
[1753242870630,1.02741374,118640.0,118630.0,0.0004]
[1753242871189,1.03341374,118640.0,118630.0,0.0004]
[1753242872977,1.03741374,118640.0,118630.0,0.0004]
[1753242873876,1.06271274,118640.0,118630.0,0.0004]
[1753242876685,1.04641274,118640.0,118630.0,0.0004]
[1753242876906,1.02707274,118640.0,118630.0,0.00238]
[1753242877089,1.02707274,118640.0,118630.0,0.00543]
[1753242877294,0.70733973,118640.0,118630.0,0.00543]
[1753242877500,1.02707274,118640.0,118630.0,0.00543]
[1753242878869,1.02707274,118640.0,118630.0,0.00238]
[1753242878999,0.70733973,118640.0,118630.0,0.00238]
[1753242879204,1.02707274,118640.0,118630.0,0.00238]
[1753242880126,1.02707274,118640.0,118630.0,0.00543]
[1753242880549,1.02707274,118640.0,118630.0,0.00238]
[1753242883993,0.70733973,118640.0,118630.0,0.00238]
[1753242884174,1.02707274,118640.0,118630.0,0.00238]
[1753242885180,1.02707274,118640.0,118630.0,0.0004]
[1753242888027,1.02707274,118640.0,118630.0,0.00543]
[1753242888233,1.02707274,118640.0,118600.0,0.0421]
[1753242888234,0.20293034,118610.0,118600.0,0.0421]
[1753242888439,0.60714065,118610.0,118600.0,0.04408]
[1753242888660,0.73950065,118610.0,118600.0,0.04408]
[1753242888891,0.73950065,118610.0,118600.0,0.04713]
[1753242889086,0.41976764,118610.0,118600.0,0.04713]
[1753242889466,0.98950065,118610.0,118600.0,0.04713]
[1753242889669,0.99354968,118610.0,118600.0,0.04713]
[1753242890306,0.99554968,118610.0,118600.0,0.04713]
[1753242890719,0.99354968,118610.0,118600.0,0.04713]
[1753242890908,0.98954968,118610.0,118600.0,0.04713]
[1753242891121,0.99254968,118610.0,118600.0,0.04713]
[1753242891324,0.99754968,118610.0,118600.0,0.04713]
[1753242891560,0.86518968,118610.0,118600.0,0.04713]
[1753242891689,0.99750968,118610.0,118600.0,0.04713]
[1753242892117,1.00599756,118610.0,118600.0,0.04713]
[1753242893596,0.68626455,118610.0,118600.0,0.04713]
[1753242893809,1.00599756,118610.0,118600.0,0.04713]
[1753242899367,1.00796756,118610.0,118600.0,0.0101]
[1753242899716,1.04442756,118610.0,118600.0,0.0101]
[1753242900455,1.03942756,118610.0,118600.0,0.0101]
[1753242900664,1.03642756,118610.0,118600.0,0.0101]
[1753242901077,1.03942756,118610.0,118600.0,0.0101]
[1753242901433,1.53628585,118610.0,118600.0,0.0101]
[1753242901658,1.53328585,118610.0,118600.0,0.0101]
[1753242901982,1.53728585,118610.0,118600.0,0.0101]
[1753242902245,1.54328585,118610.0,118600.0,0.0101]
[1753242902446,1.38642756,118610.0,118600.0,0.0101]
[1753242903463,1.7507811,118610.0,118600.0,0.0101]
[1753242903980,1.70616057,118610.0,118600.0,0.0101]
[1753242907720,1.06669455,118610.0,118600.0,0.0101]
[1753242907929,1.70616057,118610.0,118600.0,0.0101]
[1753242910088,1.70616057,118610.0,118600.0,0.00166845]
[1753242910527,0.84242764,118590.0,118580.0,0.04021238]
[1753242910741,1.05950494,118590.0,118580.0,0.02672238]
[1753242912630,0.42203892,118590.0,118580.0,0.02672238]
[1753242912824,1.06150494,118590.0,118580.0,0.02672238]
[1753242913547,1.31150494,118590.0,118580.0,0.02672238]
[1753242913746,1.31550494,118590.0,118580.0,0.02672238]
[1753242917248,1.31550494,118590.0,118580.0,0.01122238]
[1753242918106,1.31550494,118590.0,118580.0,0.02672238]
[1753242919068,1.31747494,118590.0,118580.0,0.00621238]
[1753242919642,1.31747494,118590.0,118580.0,0.00822238]
[1753242919845,1.34837494,118590.0,118580.0,0.00621238]
[1753242920053,1.34553494,118590.0,118580.0,0.00621238]
[1753242920257,1.32707494,118590.0,118580.0,0.00621238]
[1753242920454,1.31147494,118590.0,118580.0,0.00621238]
[1753242920717,0.67200892,118590.0,118580.0,0.00621238]
[1753242921029,2.00806795,118590.0,118580.0,0.00621238]
[1753242921263,1.68833494,118590.0,118580.0,0.00621238]
[1753242921507,1.55573494,118590.0,118580.0,0.00621238]
[1753242921708,1.68797494,118590.0,118580.0,0.00621238]
[1753242922119,1.69297494,118590.0,118580.0,0.00621238]
[1753242922322,1.68797494,118590.0,118580.0,0.00621238]
[1753242922519,1.04550892,118590.0,118580.0,0.00621238]
[1753242922746,1.69097494,118590.0,118580.0,0.00621238]
[1753242923152,1.69497494,118590.0,118580.0,0.00621238]
[1753242932100,1.54733494,118590.0,118580.0,0.00621238]
[1753242932319,1.67953494,118590.0,118580.0,0.00621238]
[1753242934923,1.66107494,118590.0,118580.0,0.01136238]
[1753242935777,1.65910494,118590.0,118580.0,0.01136238]
[1753242935966,1.65910494,118590.0,118580.0,0.04286238]
[1753242936961,1.65906494,118590.0,118580.0,0.02646238]
[1753242937137,1.33933193,118590.0,118580.0,0.04306238]
[1753242937336,1.65906494,118590.0,118580.0,0.04306238]
[1753242937966,1.01959892,118590.0,118580.0,0.04306238]
[1753242938175,1.65906494,118590.0,118580.0,0.04306238]
[1753242940068,1.52690494,118590.0,118580.0,0.04306238]
[1753242940289,1.65906494,118590.0,118580.0,0.04306238]
[1753242947697,0.8699899,118590.0,118580.0,0.04306238]
[1753242947893,1.0021499,118590.0,118580.0,0.04306238]
[1753242948110,1.32188291,118590.0,118580.0,0.04306238]
[1753242948538,1.33933193,118590.0,118580.0,0.04306238]
[1753242949343,1.01959892,118590.0,118580.0,0.04306238]
[1753242949557,1.20717193,118590.0,118580.0,0.04306238]
[1753242949933,1.33933193,118590.0,118580.0,0.04306238]
[1753242950187,1.01959892,118590.0,118580.0,0.04306238]
[1753242950428,1.33933193,118590.0,118580.0,0.04306238]
[1753242951161,0.99933193,118590.0,118580.0,0.04306238]
[1753242951799,0.54743892,118590.0,118580.0,0.22015793]
[1753242951931,0.3444773,118590.0,118580.0,0.5567564]
[1753242952136,0.35290914,118590.0,118580.0,0.5567564]
[1753242952545,0.3444773,118590.0,118580.0,0.5567564]
[1753242952785,0.36635823,118590.0,118580.0,0.5567564]
[1753242952995,0.35792632,118590.0,118580.0,0.5567564]
[1753242953211,0.36335809,118590.0,118580.0,0.52133076]
[1753242953669,0.36035809,118590.0,118580.0,0.52133076]
[1753242953806,0.36035809,118590.0,118580.0,0.23702339]
[1753242954006,0.36235809,118590.0,118580.0,0.23702339]
[1753242954480,0.37579,118590.0,118580.0,0.23702339]
[1753242954758,0.257,118590.0,118580.0,0.52133076]
[1753242955164,0.26543184,118590.0,118580.0,0.23702339]
[1753242956595,0.257,118590.0,118580.0,0.23702339]
[1753242956911,0.257,118590.0,118580.0,0.52133076]
[1753242957344,0.257,118590.0,118580.0,0.23702339]
[1753242957619,0.257,118590.0,118580.0,0.52133076]
[1753242959660,0.257,118590.0,118580.0,0.52980435]
[1753242961218,0.252,118590.0,118580.0,0.52980435]
[1753242961415,0.002,118590.0,118580.0,0.52980435]
[1753242961615,0.003,118590.0,118580.0,0.52980435]
[1753242961862,0.25,118600.0,118590.0,0.22574465]
[1753242962062,0.25,118600.0,118590.0,0.64430202]
[1753242962262,0.25,118600.0,118590.0,0.64749202]
[1753242963527,0.253,118600.0,118590.0,0.64749202]
[1753242964571,0.253,118600.0,118590.0,0.21420062]
[1753242964774,0.29574319,118600.0,118590.0,0.37161685]
[1753242965366,0.29674319,118600.0,118590.0,0.37261685]
[1753242965548,0.27988022,118600.0,118590.0,0.37261685]
[1753242966139,0.28831149,118600.0,118590.0,0.37261685]
[1753242966587,0.27144902,118600.0,118590.0,0.37261685]
[1753242967337,0.254,118600.0,118590.0,0.37261685]
[1753242967743,0.26243106,118600.0,118590.0,0.37261685]
[1753242967973,0.254,118600.0,118590.0,0.37261685]
[1753242969578,0.26243106,118600.0,118590.0,0.37257685]
[1753242969987,0.27086233,118600.0,118590.0,0.37257685]
[1753242970181,0.27086226,118600.0,118590.0,0.37257685]
[1753242970529,0.27086226,118600.0,118590.0,0.24049685]
[1753242970744,0.26243106,118600.0,118590.0,0.37257685]
[1753242970928,0.27086226,118600.0,118590.0,0.37257685]
[1753242971399,0.26243106,118600.0,118590.0,0.24049685]
[1753242971615,0.27086219,118600.0,118590.0,0.37257685]
[1753242971829,0.27929346,118600.0,118590.0,0.37257685]
[1753242972020,0.28772487,118600.0,118590.0,0.24049685]
[1753242972225,0.27929346,118600.0,118590.0,0.37257685]
[1753242972353,0.28772487,118600.0,118590.0,0.37257685]
[1753242972978,0.29615643,118600.0,118590.0,0.37257685]
[1753242973191,0.27929346,118600.0,118590.0,0.37257685]
[1753242973596,0.28772487,118600.0,118590.0,0.37257685]
[1753242973810,0.27929346,118600.0,118590.0,0.37257685]
[1753242974014,0.27086219,118600.0,118590.0,0.37257685]
[1753242974188,0.27929353,118600.0,118590.0,0.37257685]
[1753242974757,0.28772501,118600.0,118590.0,0.37257685]
[1753242974979,0.28772509,118600.0,118590.0,0.37257685]
[1753242975589,0.27929353,118600.0,118590.0,0.37257685]
[1753242975767,0.28772509,118600.0,118590.0,0.37257685]
[1753242976424,0.28772501,118600.0,118590.0,0.37257685]
[1753242976625,0.27929353,118600.0,118590.0,0.37257685]
[1753242976882,0.28772501,118600.0,118590.0,0.37257685]
[1753242977201,0.47380859,118600.0,118590.0,0.20676828]
[1753242977341,0.82768079,118600.0,118590.0,0.13521]
[1753242977530,0.82768079,118600.0,118590.0,0.31229055]
[1753242977730,0.82768079,118600.0,118590.0,0.30385828]
[1753242977978,0.81924931,118600.0,118590.0,0.32391303]
[1753242978244,0.81729931,118600.0,118590.0,0.32391303]
[1753242978542,0.81729931,118600.0,118590.0,0.34754523]
[1753242978685,0.54142328,118600.0,118590.0,0.34754523]
[1753242978884,0.54985491,118600.0,118590.0,0.35597735]
[1753242979089,0.54985491,118600.0,118590.0,0.33911303]
[1753242979297,0.53299201,118600.0,118590.0,0.33823303]
[1753242979501,0.53299201,118600.0,118590.0,0.32303303]
[1753242979695,0.53299201,118600.0,118590.0,0.31460069]
[1753242980045,0.52456038,118600.0,118590.0,0.31460069]
[1753242980472,0.52456038,118600.0,118590.0,0.32303296]
[1753242980821,0.52456038,118600.0,118590.0,0.33146516]
[1753242982147,0.54985491,118600.0,118590.0,0.36402919]
[1753242982618,0.55828661,118600.0,118590.0,0.36402919]
[1753242983262,0.37278879,118600.0,118590.0,0.36402919]
[1753242983455,0.37278879,118600.0,118590.0,0.37962869]
[1753242983654,0.36435745,118600.0,118590.0,0.37962869]
[1753242984067,0.36435745,118600.0,118590.0,0.24435869]
[1753242984283,0.37278865,118600.0,118590.0,0.37938869]
[1753242985225,0.6760387,118600.0,118590.0,0.21180869]
[1753242985439,0.43086289,118600.0,118590.0,0.34388869]
[1753242985902,0.40016289,118600.0,118590.0,0.34388869]
[1753242986107,0.39173133,118600.0,118590.0,0.34602869]
[1753242986239,0.40016289,118600.0,118590.0,0.34602869]
[1753242986443,0.56879695,118600.0,118590.0,0.1949448]